Cogmind - Beta 10.2 @@@ ROGUE MODE // 2021.07.16 @ 15:17:03 Player: Sanctumkeeper Result: Destroyed by H-88 Terminator with KE Penetrator Performance ------------- Evolutions (9) 4500 Regions Visited (28) 5600 Robots Destroyed (400) 2000 Value Destroyed (17587) 17587 Prototype IDs (43) 860 Alien Tech Used (1) 200 Bonus (4621) 4621 TOTAL SCORE: 35368 Bonus ------- High Alert Combat Kills 317 Follower Combat Kills 2522 Met Data Miner 300 Met Imprinter 300 Met Warlord at Base 500 MAIN.C Attacked Warlord 500 Warlord Defense Kill 632 Met R17 at Cetus 500 Friendly Fire -950 Cogmind --------- Core Integrity 0/1600 Matter 21/300 Energy 99/100 System Corruption 9% Temperature Cool (0) Movement Core (50) Location -1/Access Parts ------- > --- POWER (2) -------- (None) > --- PROPULSION (4) --- (None) > --- UTILITY (14) ----- (None) > --- WEAPON (6) ------- (None) > --- INVENTORY (4) ---- (None) Peak State ------------ > --- POWER ------------ Light Antimatter Reactor Light Particle Reactor > --- PROPULSION ------- Advanced Heavy Treads Centrium Heavy Treads > --- UTILITY ---------- 2N-1CE's Frost Array High-capacity Storage Unit High-capacity Storage Unit High-capacity Storage Unit High-capacity Storage Unit Long-range Sensor Array Advanced Signal Interpreter Experimental Terrain Scan Processor Transmission Jammer Layered Medium Armor Plating Centrium Heavy Armor Plating Centrium Heavy Armor Plating > --- WEAPON ----------- Nova Cannon Railgun Railgun Railgun Railgun Railgun > --- INVENTORY -------- Light Fission Core Light Quantum Reactor Vortex Chain Reactor Biometal Heavy Treads Matter Compressor Experimental Optical Array Spectral Analyzer Advanced Sensor Array Improved Kinecellerator Experimental Phase Shifter Improved Medium Armor Plating Centrium Medium Armor Plating Medium Regenerative Plating Medium Regenerative Plating Medium Regenerative Plating SHELL Armor Improved System Restoration Module Hacking Drone Bay Dimensional Node Initializer Heavy Neutron Cannon Heavy Battle Rifle Heavy Machine Gun Heavy Machine Gun KE Penetrator Railgun Proton Missile Launcher Plasma Lance [Rating: 186] Favorites ----------- Power Light Fission Core Engine Ion Engine Power Core Light Fission Core Reactor Light Particle Reactor Propulsion Medium Treads Treads Medium Treads Wheel Compact Wheel Hover Unit Antigrav Array Flight Unit Impulse Thruster Utility High-capacity Storage Unit Device Long-range Sensor Array Storage High-capacity Storage Unit Processor Experimental Terrain Scan Processor Hackware System Mapper Protection Improved Medium Armor Plating Weapon Railgun Energy Gun Medium Laser Energy Cannon Heavy Neutron Cannon Ballistic Gun Railgun Ballistic Cannon Linear Accelerator Launcher Proton Missile Launcher Slashing Weapon Chainsword Build | -11 -10 -10 -9 -9 -8 -7 -7 -7 -7 -6 -6 -6 -6 -6 -5 -5 -5 -5 -5 -4 -4 -4 -4 -4 -3 -3 -2 -1 ------- Run | Scr Mat Min Mat Sto Mat Fac Low Low Dat Pro Fac Low Low Zio Pro Fac Upp Upp War Pro Fac Ext Cet Arc Res Tes Res Acc Slots Evolved 18 | . . . 2 . 2 2 . . . . 2 . . . . 2 . . . . 2 . . . 2 . 2 2 Power 1 | . . . . . . . . . . . . . . . . . . . . . . . . . . . 1 . Propulsion 1 | . . . 1 . . . . . . . . . . . . . . . . . . . . . . . . . Utility 12 | . . . 1 . 2 1 . . . . 2 . . . . 1 . . . . 2 . . . 1 . 1 1 Weapon 4 | . . . . . . 1 . . . . . . . . . 1 . . . . . . . . 1 . . 1 Parts Attached 612 | 6 12 4 24 26 22 64 6 10 . 13 61 6 9 14 6 36 11 6 25 12 56 32 7 10 35 43 24 32 Power 37 | 1 2 . 3 2 1 6 . . . 1 3 . . . . 3 . . . 1 3 2 . . 2 1 4 2 Engine 11 | 1 2 . 3 1 1 1 . . . . 2 . . . . . . . . . . . . . . . . . Core 17 | . . . . 1 . 5 . . . 1 1 . . . . 3 . . . 1 3 2 . . . . . . Reactor 9 | . . . . . . . . . . . . . . . . . . . . . . . . . 2 1 4 2 Propulsion 105 | 2 3 2 10 14 10 10 1 . . 1 8 1 2 7 1 9 . . 9 . 1 1 1 2 3 1 1 5 Treads 101 | 1 2 2 10 14 10 10 1 . . 1 8 1 2 7 1 9 . . 9 . 1 1 1 2 3 1 1 3 Leg . | . . . . . . . . . . . . . . . . . . . . . . . . . . . . . Wheel 2 | 1 1 . . . . . . . . . . . . . . . . . . . . . . . . . . . Hover 1 | . . . . . . . . . . . . . . . . . . . . . . . . . . . . 1 Flight 1 | . . . . . . . . . . . . . . . . . . . . . . . . . . . . 1 Utility 288 | 1 4 . 4 1 8 37 5 6 . 6 35 4 3 1 4 14 9 4 12 5 40 20 5 6 14 24 7 9 Device 163 | . . . . . 2 18 3 5 . 3 22 3 2 1 2 8 7 2 7 4 27 11 1 4 8 15 3 5 Storage 20 | 1 4 . 3 1 . 8 . . . . . . . . . 1 . . . . 1 . . . . 1 . . Processor 7 | . . . . . . 1 . . . . 2 . . . . 1 . . . . 1 1 . . . . 1 . Hackware 2 | . . . . . . . . . . . . 1 . . . . . . . . . . . . 1 . . . Protection 96 | . . . 1 . 6 10 2 1 . 3 11 . 1 . 2 4 2 2 5 1 11 8 4 2 5 8 3 4 Artifact . | . . . . . . . . . . . . . . . . . . . . . . . . . . . . . Weapon 182 | 2 3 2 7 9 3 11 . 4 . 5 15 1 4 6 1 10 2 2 4 6 12 9 1 2 16 17 12 16 Energy Gun 2 | 2 . . . . . . . . . . . . . . . . . . . . . . . . . . . . Energy Cannon 29 | . . . . . . . . . . 1 2 . 1 . . 1 . 1 1 . 3 1 . . 5 7 2 4 Ballistic Gun 136 | . 3 2 7 7 3 9 . 2 . 3 11 1 2 5 1 8 2 1 3 5 9 8 1 2 11 10 9 11 Ballistic Cannon 1 | . . . . . . . . . . . . . . . . . . . . . . . . . . . . 1 Launcher 11 | . . . . 2 . 1 . 2 . 1 1 . 1 1 . . . . . 1 . . . . . . 1 . Special Weapon . | . . . . . . . . . . . . . . . . . . . . . . . . . . . . . Impact Weapon . | . . . . . . . . . . . . . . . . . . . . . . . . . . . . . Slashing Weapon 3 | . . . . . . 1 . . . . 1 . . . . 1 . . . . . . . . . . . . Piercing Weapon . | . . . . . . . . . . . . . . . . . . . . . . . . . . . . . Special Melee Weapon . | . . . . . . . . . . . . . . . . . . . . . . . . . . . . . Unidentified Prototypes 29 | . . . . 2 2 2 . . . . 1 . 1 . . 2 . . 4 . 2 1 2 1 1 6 . 2 Parts Lost 135 | . 2 2 5 2 2 12 . 1 . 3 19 . 2 . 1 5 3 . 14 . 4 8 . . 8 6 9 27 Power 13 | . 1 . . 2 . . . . . . 1 . . . . . . . 1 . . . . . . 1 3 4 Propulsion 30 | . . . 2 . . 5 . . . 1 6 . . . . 3 . . 4 . 1 1 . . 2 . 1 4 Utility 39 | . . . . . 1 4 . . . . 6 . 2 . . 1 1 . 4 . 1 4 . . 2 1 3 9 Weapon 53 | . 1 2 3 . 1 3 . 1 . 2 6 . . . 1 1 2 . 5 . 2 3 . . 4 4 2 10 Highest Loss Streak 12 | . 2 1 2 1 2 4 . 1 . 1 9 . 2 . 1 3 3 . 12 . 3 4 . . 3 2 5 10 Average Slot Usage (%) 94 | . 97 100 97 97 99 99 100 100 100 100 99 100 97 97 100 98 99 100 97 85 85 87 86 85 87 88 85 69 Engine 1 | . 14 14 11 6 9 . . . . . 4 . . . . . . . . . . . . . . . . . Core 3 | . . . . 2 . 6 7 7 7 7 1 6 6 6 6 5 5 5 4 4 4 5 5 5 . . . . Treads 18 | . 14 14 32 33 27 23 23 23 23 23 19 20 22 25 25 21 22 22 21 11 10 10 10 10 9 9 8 6 Device 11 | . . . . . 8 9 14 14 15 14 12 9 10 9 10 12 15 15 11 10 14 15 10 14 19 16 12 8 Storage 21 | . 26 28 28 33 27 23 23 23 23 23 20 20 19 18 18 21 22 22 22 22 20 20 20 20 18 18 16 12 Processor 8 | . . . . . . 7 7 7 7 7 13 13 12 12 12 11 11 11 11 11 10 10 10 10 9 9 8 6 Protection 4 | . . . 3 . 9 4 . . . . 6 9 6 6 7 3 . . 2 3 6 9 10 5 3 4 5 8 Ballistic Gun 20 | . 25 28 21 20 17 22 23 22 23 22 19 20 18 17 18 21 22 19 21 20 19 18 20 20 21 20 18 16 Naked Turns 44 | . . . . . . . . . . . . . . . . . . . . . . . . . . . . 44 Heaviest Build 252 | 13 32 32 45 67 79 124 116 124 117 122 134 130 132 125 125 168 167 174 186 164 201 204 206 204 206 209 226 252 Greatest Support 155 | 16 20 20 60 60 69 65 63 63 63 63 70 70 98 106 104 111 111 111 140 140 140 145 145 145 145 140 140 155 Greatest Overweight (x) 63 | . 1 1 1 1 1 2 1 1 1 1 2 1 1 1 1 50 1 1 2 1 1 1 1 63 1 1 1 1 Average Overweight (x) 1 | . . 1 . . 1 1 1 1 1 1 1 1 1 1 1 1 1 1 1 1 1 1 1 8 1 1 1 . Largest Inventory Capacity 36 | 6 14 14 18 22 22 28 28 28 28 28 28 28 28 28 28 36 36 36 36 36 36 36 36 36 36 36 36 36 Average Capacity 29 | 5 9 14 15 19 22 25 28 28 28 28 28 28 28 28 28 35 36 36 36 36 36 36 36 36 36 36 36 31 Most Carried 36 | 4 14 14 18 22 22 28 28 28 28 28 28 28 28 28 28 36 36 36 36 30 36 36 36 36 36 36 36 36 Average Carried 28 | 2 8 13 15 18 21 25 27 27 28 26 26 27 27 27 27 34 34 35 35 25 34 31 35 35 34 35 34 27 Final Capacity 36 | 6 14 14 18 22 22 28 28 28 28 28 28 28 28 28 28 36 36 36 36 36 36 36 36 36 36 36 36 4 Final Carried 36 | 4 14 14 18 22 22 28 28 28 28 25 28 28 28 28 28 36 35 36 30 26 34 36 36 36 34 36 36 . Class Distribution -------------------- 43% | Hauler-Skirmisher 15% | Scavenger-Skirmisher 11% | Hauler-Mutant 11% | Hauler-Tank 8% | Scavenger-Mutant 4% | Mutant Dominant Class ---------------- Mutant | -10/Materials Mutant | -10/Mines Scavenger-Mutant | -9/Materials Scavenger-Mutant | -9/Storage Hauler-Mutant | -8/Materials Hauler-Skirmisher | -7/Factory Hauler-Skirmisher | -7/Lower Caves Hauler-Skirmisher | -7/Lower Caves Hauler-Skirmisher | -7/Data Miner Hauler-Skirmisher | -6/Proximity Caves Hauler-Skirmisher | -6/Factory Hauler-Skirmisher | -6/Lower Caves Hauler-Skirmisher | -6/Lower Caves Scavenger-Skirmisher | -6/Zion Hauler-Skirmisher | -5/Proximity Caves Hauler-Skirmisher | -5/Factory Hauler-Skirmisher | -5/Upper Caves Hauler-Mutant | -5/Upper Caves Hauler-Skirmisher | -5/Warlord Hauler-Skirmisher | -4/Proximity Caves Hauler-Skirmisher | -4/Factory Hauler-Skirmisher | -4/Extension Commander-Tank | -4/Cetus Scavenger-Skirmisher | -4/Archives Scavenger-Skirmisher | -3/Research Hauler-Mutant | -3/Testing Hauler-Mutant | -2/Research Hauler-Executioner | -1/Access Resources | -11 -10 -10 -9 -9 -8 -7 -7 -7 -7 -6 -6 -6 -6 -6 -5 -5 -5 -5 -5 -4 -4 -4 -4 -4 -3 -3 -2 -1 ----------- Run | Scr Mat Min Mat Sto Mat Fac Low Low Dat Pro Fac Low Low Zio Pro Fac Upp Upp War Pro Fac Ext Cet Arc Res Tes Res Acc Matter Collected 19892 | 202 492 81 611 722 873 1749 473 280 . 357 1678 262 77 254 293 868 460 190 514 192 1365 1568 207 271 2016 1359 1425 1053 Remotely 369 | . . . . . . . . 179 . . . . . . . . . . 190 . . . . . . . . . Salvage Created 19620 | . 502 216 1047 958 1405 1963 206 239 . 164 2034 191 70 . 194 844 266 195 280 232 1634 1237 162 165 2228 910 1336 942 Parts 1065 | . 37 9 80 75 76 120 6 13 . 9 93 10 5 . 8 41 10 7 12 14 71 57 5 3 134 56 56 58 Haulers Intercepted 21 | . 2 . 3 3 3 2 . . . . 3 . . . . 1 . . . . 3 . . . 1 . . . Recyclers Shooed 18 | . 1 . 4 1 1 1 . . . . 4 . . . . . . . . . . 2 . . 1 2 . 1 Parts Field Recycled . | . . . . . . . . . . . . . . . . . . . . . . . . . . . . . Retrieved Matter . | . . . . . . . . . . . . . . . . . . . . . . . . . . . . . Parts Self-Destructed 181 | . . . . . . . 6 6 . 21 . 10 8 4 7 . 9 7 95 8 . . . . . . . . Prevented 31 | . . . . . . . . 1 . 2 . . 1 . . . 1 . 22 4 . . . . . . . . Kills | -11 -10 -10 -9 -9 -8 -7 -7 -7 -7 -6 -6 -6 -6 -6 -5 -5 -5 -5 -5 -4 -4 -4 -4 -4 -3 -3 -2 -1 ------- Run | Scr Mat Min Mat Sto Mat Fac Low Low Dat Pro Fac Low Low Zio Pro Fac Upp Upp War Pro Fac Ext Cet Arc Res Tes Res Acc Combat Hostiles Destroyed 327 | . 14 6 22 20 23 36 4 8 . 4 31 3 3 . 8 18 5 3 5 6 18 16 1 1 25 13 22 12 Melee 1 | . . . . . . . . . . . . . . . . . . . . . 1 . . . . . . . Guns 301 | . 14 6 22 20 23 36 4 2 . 1 30 3 . . 8 18 5 3 5 1 17 16 1 1 25 13 18 9 Cannons 3 | . . . . . . . . . . . . . . . . . . . . . . . . . . . . 3 AOE 19 | . . . . . . . . 6 . 2 . . 3 . . . . . . 5 . . . . . . 3 . Classes Destroyed 21 | . 5 1 3 1 3 1 1 . . . . . . . . . . . 1 . . 1 . . . 1 3 . Worker 9 | . . . . . 1 1 . . . . 2 . . . . . . . . . . . . . 3 . 1 1 Builder 14 | . . . 1 2 2 1 . . . . 2 . . . . 1 . . . . . 3 . . 1 . . 1 Tunneler 2 | . . . . . 1 1 . . . . . . . . . . . . . . . . . . . . . . Hauler 21 | . 2 . 3 3 3 2 . . . . 3 . . . . 1 . . . . 3 . . . 1 . . . Recycler 17 | . 1 . . 1 2 5 . . . . 1 . . . . 1 . . . . 2 2 . . 2 . . . Operator 3 | . 1 . 1 1 . . . . . . . . . . . . . . . . . . . . . . . . Watcher 6 | . . . . 1 1 2 . . . . . . . . . . . . . . . 1 . . . . 1 . Swarmer 98 | . 9 . 4 7 3 15 . 7 . 3 7 . 3 . 8 13 . . . 5 . 6 . . . . 8 . Grunt 91 | . 5 4 13 7 11 7 3 . . 1 9 . . . . . 4 2 4 . 6 4 . . 7 4 . . Brawler 5 | . . . 1 . 1 . . . . . 3 . . . . . . . . . . . . . . . . . Duelist 2 | . . . . . . . 1 . . . 1 . . . . . . . . . . . . . . . . . Researcher 1 | . . . . . . . . . . . . . . . . . . . . . . . . . . 1 . . Sentry 44 | . . . 4 6 7 5 . . . . 4 1 . . . 1 . 1 . 1 2 5 . 1 4 . 2 . Demolisher 3 | . . . . . . . . . . . . . . . . . . . . . . . . . . . 3 . Specialist 1 | . . . . . . . . . . . . . . . . . . . 1 . . . . . . . . . Hunter 20 | . . . . . 1 2 . . . . 4 2 . . . . 1 . . . . . . . 4 . . 6 Programmer 51 | . . . . . . 7 . 1 . . 3 . . . . 4 . . . . 10 . . . 10 9 2 5 Behemoth 2 | . . . . . . . . . . . . . . . . . . . . . . 1 . . . . . 1 Cetus Guard 1 | . . . . . . . . . . . . . . . . . . . . . . . 1 . . . . . Striker 5 | . . . . . . . . . . . . . . . . . . . . . . . . . . . 5 . Executioner 2 | . . . . . . . . . . . . . . . . . . . . . . . . . . . 2 . Assembled 2 | . . 2 . . . . . . . . . . . . . . . . . . . . . . . . . . Savage 2 | . . . . . . . . . . . . . . . . . . . . . . . 1 1 . . . . Best Kill Streak 8 | . 6 2 5 6 6 7 4 4 . 3 8 1 3 . 4 6 2 3 3 2 5 6 1 1 4 6 5 3 Combat Bots Only 7 | . 5 2 5 6 3 7 4 4 . 3 7 1 3 . 4 6 2 3 3 2 3 4 1 1 3 6 5 3 Max Kills in Single Turn 4 | . 2 1 1 2 4 2 1 3 . 1 2 1 3 . 2 2 1 1 1 1 2 2 2 1 2 1 2 2 Gunslinging 1 | . 1 . . 1 . 1 . . . . 1 . . . 1 1 . . . . 1 1 . . . . 1 1 Exploded 3 | . . . . . . . . 3 . 1 . . 3 . . . . . . 1 . . . . . . 2 . Melee 1 | . . . . . . . . . . . . . . . . . . . . . 1 . . . . . . . Uniques/NPCs Destroyed . | . . . . . . . . . . . . . . . . . . . . . . . . . . . . . Combat | -11 -10 -10 -9 -9 -8 -7 -7 -7 -7 -6 -6 -6 -6 -6 -5 -5 -5 -5 -5 -4 -4 -4 -4 -4 -3 -3 -2 -1 -------- Run | Scr Mat Min Mat Sto Mat Fac Low Low Dat Pro Fac Low Low Zio Pro Fac Upp Upp War Pro Fac Ext Cet Arc Res Tes Res Acc Damage Taken 41398 | . 509 274 1032 964 1146 3151 435 417 . 437 3670 287 166 . 588 790 627 288 4524 220 2378 1360 280 80 3568 1593 4021 8593 Core 4152 | . 76 14 46 164 65 410 28 . . 30 295 24 . . 47 . 37 19 481 48 76 66 53 28 131 180 224 1610 Absorbed by Shields 460 | . . . . . . . . . . . . . . . . . . . . . . 375 85 . . . . . Reduced by Siege Mode 87 | . . . . . . . . . . . . . . . . . . . . . . . . . . . . 87 Core Remaining (%) 66 | 100 . 64 . 47 88 . . . . 33 . . . . 56 . . . . 41 . . . 80 . 76 84 . Volleys Fired 1143 | . 51 21 102 62 87 122 11 22 . 24 122 16 7 . 16 42 15 9 17 8 54 50 7 9 80 53 60 76 Largest 6 | . 2 2 2 2 2 3 3 3 . 3 3 3 1 . 3 4 4 4 4 4 4 4 4 4 5 5 5 6 Hottest 288 | . 40 40 46 46 53 76 75 75 . 111 81 79 90 . 76 99 103 101 101 122 184 138 138 140 243 160 180 288 Shots Fired 3349 | . 102 42 198 117 174 365 33 46 . 60 316 48 7 . 48 141 60 33 68 14 200 164 27 36 361 178 226 285 Gun 3193 | . 102 42 198 113 174 365 33 36 . 53 294 48 . . 48 138 60 32 68 8 195 158 27 36 352 158 209 246 Cannon 113 | . . . . . . . . . . 1 17 . 1 . . 3 . 1 . . 5 6 . . 9 20 11 39 Launcher 43 | . . . . 4 . . . 10 . 6 5 . 6 . . . . . . 6 . . . . . . 6 . Special . | . . . . . . . . . . . . . . . . . . . . . . . . . . . . . Kinetic 3193 | . 102 42 198 113 174 365 33 36 . 53 294 48 . . 48 138 60 32 68 8 195 158 27 36 352 158 209 246 Thermal 113 | . . . . . . . . . . 1 17 . 1 . . 3 . 1 . . 5 6 . . 9 20 11 39 Explosive 4 | . . . . 4 . . . . . . . . . . . . . . . . . . . . . . . . Electromagnetic 39 | . . . . . . . . 10 . 6 5 . 6 . . . . . . 6 . . . . . . 6 . Robot Hit Streak 45 | . 13 15 45 23 21 18 20 12 . 9 25 8 5 . 9 14 22 18 8 14 18 13 5 12 20 16 17 25 Robot Miss Streak 9 | . 3 4 3 2 4 4 1 5 . 2 9 4 2 . 3 3 3 1 3 1 2 2 1 3 3 2 3 4 Penetration Max 1 | . . . . . . . . . . . . . . . . . . . 1 . 1 1 1 . 1 1 1 1 Secondary Targets 56 | . 3 . 2 2 2 7 1 . . 1 7 . . . 2 4 1 . 1 . 3 4 . . 5 . 9 2 Max Gunslinging Chain 2 | . 1 . 1 1 1 1 1 . . 1 1 . . . 1 2 1 . 1 . 1 1 . . 1 . 1 1 Shots Hit Robots 2288 | . 66 30 173 88 139 257 31 24 . 43 234 32 2 . 33 91 42 20 40 10 136 106 18 25 228 101 143 176 Core Hits 944 | . 26 16 56 40 76 111 9 14 . 19 129 10 4 . 13 40 13 9 16 10 52 43 7 8 85 31 57 50 Critical Hits 66 | . 1 . 5 . . 1 1 . . . . 2 . . . 2 . . 2 . 6 10 2 1 10 6 10 7 Critical Kills 23 | . . . 1 . . . 1 . . . . . . . . 1 . . 1 . 3 3 1 . 4 4 4 . Critical Parts Destroyed 33 | . 1 . 3 . . 1 . . . . . 1 . . . 1 . . 1 . 3 4 1 1 5 2 6 3 Melee Attacks 8 | . . . . . . 4 . . . . 2 . . . . 2 . . . . . . . . . . . . Impact . | . . . . . . . . . . . . . . . . . . . . . . . . . . . . . Slashing 8 | . . . . . . 4 . . . . 2 . . . . 2 . . . . . . . . . . . . Piercing . | . . . . . . . . . . . . . . . . . . . . . . . . . . . . . Sneak Attacks . | . . . . . . . . . . . . . . . . . . . . . . . . . . . . . Combat Hostiles . | . . . . . . . . . . . . . . . . . . . . . . . . . . . . . Follow-up Attacks . | . . . . . . . . . . . . . . . . . . . . . . . . . . . . . Damage Inflicted 48384 | . 814 306 1817 1356 2956 4497 633 675 . 739 4430 456 191 . 463 1682 678 415 969 406 3790 3396 580 799 5327 2823 3894 4292 Guns 44378 | . 814 298 1810 1356 2122 3992 486 263 . 575 4122 456 . . 463 1682 678 415 969 159 3597 3384 580 799 5285 2823 3537 3713 Cannons 354 | . . . . . . . . . . . . . . . . . . . . . 38 . . . . . . 316 Explosions 3035 | . . . . . 817 435 . 412 . 164 292 . 191 . . . . . . 247 138 . . . . . 339 . Melee . | . . . . . . . . . . . . . . . . . . . . . . . . . . . . . Ramming 617 | . . 8 7 . 17 70 147 . . . 16 . . . . . . . . . 17 12 . . 42 . 18 263 Kinetic 44378 | . 814 298 1810 1356 2122 3992 486 263 . 575 4122 456 . . 463 1682 678 415 969 159 3597 3384 580 799 5285 2823 3537 3713 Thermal 1076 | . . . . . . 435 . 122 . . . . 27 . . . . . . . 176 . . . . . . 316 Explosive 937 | . . . . . 817 . . . . . 120 . . . . . . . . . . . . . . . . . Electromagnetic 1376 | . . . . . . . . 290 . 164 172 . 164 . . . . . . 247 . . . . . . 339 . Impact . | . . . . . . . . . . . . . . . . . . . . . . . . . . . . . Slashing . | . . . . . . . . . . . . . . . . . . . . . . . . . . . . . Piercing . | . . . . . . . . . . . . . . . . . . . . . . . . . . . . . Highest Corruption 9 | . . . 2 4 . 7 6 1 . 1 . . . . . 3 . . . . 6 6 3 3 6 7 2 9 Average Corruption 2 | . . . 2 3 . 2 4 1 . 1 . . . . . 2 . . . . 2 3 3 2 4 4 1 3 Corruption Purged 32 | . . . . . . 2 6 1 . . . . . . . 3 . . . . . 3 . 3 7 7 . . Effects 269 | . . . 4 16 . 24 21 . . 5 . . . . . 14 . . . . 13 38 8 2 32 54 7 31 Message Errors 54 | . . . . 2 . 2 9 . . . . . . . . 4 . . . . 5 3 4 . 8 6 2 9 Matter Fused 45 | . . . . 6 . 2 5 . . . . . . . . 1 . . . . 3 11 1 . 5 8 . 3 Heat Flow Errors 38 | . . . . 2 . 3 5 . . . . . . . . 3 . . . . . 5 . . 1 12 2 5 Energy Discharges 34 | . . . 2 3 . 5 . . . 3 . . . . . 2 . . . . 2 6 . . 4 6 . 1 Parts Rejected 2 | . . . . . . . . . . . . . . . . . . . . . . . . . . . . 2 Data Loss (minor) 30 | . . . 2 . . 3 2 . . 1 . . . . . 3 . . . . 2 1 1 . 4 6 2 3 Data Loss (major) 5 | . . . . . . . . . . . . . . . . . . . . . . 1 . . 1 3 . . Misfires 6 | . . . . . . . . . . . . . . . . . . . . . . 2 . . 1 1 . 2 Targeting Errors 49 | . . . . 2 . 9 . . . 1 . . . . . 1 . . . . 1 9 1 2 7 10 1 5 Weapon Failures 6 | . . . . 1 . . . . . . . . . . . . . . . . . . 1 . 1 2 . 1 Overload Shots . | . . . . . . . . . . . . . . . . . . . . . . . . . . . . . Overflow Damage 408 | . . . . . 91 182 75 . . . 20 . 6 . . . . . . . 34 . . . . . . . Projectiles 11 | . . . . . . . . . . . . . . . . . . . . . 11 . . . . . . . Explosions 322 | . . . . . 91 182 . . . . 20 . 6 . . . . . . . 23 . . . . . . . Melee 75 | . . . . . . . 75 . . . . . . . . . . . . . . . . . . . . . Knockbacks 1 | . . . . . . . . . . . . . . . . . . . . . . . . . 1 . . . Impact 1 | . . . . . . . . . . . . . . . . . . . . . . . . . 1 . . . Kinetic . | . . . . . . . . . . . . . . . . . . . . . . . . . . . . . Secondary . | . . . . . . . . . . . . . . . . . . . . . . . . . . . . . Self-Inflicted Damage 651 | . . . . 85 . 132 . . . 27 273 . 68 . . . . . . 24 42 . . . . . . . Shots 15 | . . . . 3 . 2 . . . 2 4 . 2 . . . . . . 1 1 . . . . . . . Rammed 48 | . . 2 3 . 2 6 10 . . . 1 . . . . . . . . . 1 1 . . 3 . 1 18 Targets Rammed 54 | . . 2 3 . 3 8 10 . . . 2 . . . . . . . . . 2 1 . . 3 . 1 19 Kicked . | . . . . . . . . . . . . . . . . . . . . . . . . . . . . . Crushed 6 | . . . . . 1 2 . . . . 1 . . . . . . . . . 1 . . . . . . 1 Highest Temperature 505 | . 6 18 20 181 18 238 272 152 . 8 105 176 40 . 164 268 27 . 146 . 21 445 237 391 114 294 157 505 Average Temperature 73 | . 6 8 5 37 9 47 108 72 . 6 31 87 18 . 73 82 13 . 51 . 10 139 105 148 21 68 80 188 Received Heat Transfer 4539 | . 102 102 498 240 513 318 171 . . 45 609 54 . . 9 27 171 99 636 9 189 204 15 9 309 84 18 108 Effects 9 | . . . . . . 1 . . . . . . . . . 3 . . . . . 3 . 1 . . . 1 Shutdowns 2 | . . . . . . . . . . . . . . . . . . . . . . 1 . 1 . . . . Energy Bleed 1 | . . . . . . 1 . . . . . . . . . . . . . . . . . . . . . . Interference 6 | . . . . . . . . . . . . . . . . 3 . . . . . 2 . . . . . 1 Siege Activations 5 | . . . . . . . . . . . . . . . . . . . . . . . . . . 1 1 3 Total Turns 50 | . . . . . . . . . . . . . . . . . . . . . . . . . . 7 7 36 Longest Duration 18 | . . . . . . . . . . . . . . . . . . . . . . . . . . 7 7 18 Robots Corrupted 3 | . . . . . . . . . . 1 1 . . . . . . . . . . . . . . . 1 . Combat Hostiles 3 | . . . . . . . . . . 1 1 . . . . . . . . . . . . . . . 1 . Parts Fried 14 | . . . . . . . . 1 . 2 3 . . . . . . . . 1 . 1 1 . . . 5 . Impact Corruptions 10 | . . . . . . . 10 . . . . . . . . . . . . . . . . . . . . . Robots Melted . | . . . . . . . . . . . . . . . . . . . . . . . . . . . . . Combat Hostiles . | . . . . . . . . . . . . . . . . . . . . . . . . . . . . . Parts Melted 1 | . . . . . . . . . . . . . . . . . . . . . . 1 . . . . . . Heat Transferred 897 | . . . . . . 300 . 150 . . . . 50 . . . . . . . 125 . . . . . . 272 Parts Sabotaged . | . . . . . . . . . . . . . . . . . . . . . . . . . . . . . Parts Stolen . | . . . . . . . . . . . . . . . . . . . . . . . . . . . . . Parts Stripped . | . . . . . . . . . . . . . . . . . . . . . . . . . . . . . Power Chain Reactions 4 | . . . . . . . . 3 . . . . 1 . . . . . . . . . . . . . . . Missiles Intercepted . | . . . . . . . . . . . . . . . . . . . . . . . . . . . . . Alert | -11 -10 -10 -9 -9 -8 -7 -7 -7 -7 -6 -6 -6 -6 -6 -5 -5 -5 -5 -5 -4 -4 -4 -4 -4 -3 -3 -2 -1 ------- Run | Scr Mat Min Mat Sto Mat Fac Low Low Dat Pro Fac Low Low Zio Pro Fac Upp Upp War Pro Fac Ext Cet Arc Res Tes Res Acc Peak Influence 876 | . 245 96 310 496 322 703 . . . . 745 . . . . 184 . . . . 379 485 876 554 501 267 344 357 Initial 334 | . . 46 11 100 155 117 . . . . 26 . . . . . . . . . . 142 271 334 . 231 102 206 Average 196 | . 115 61 207 345 142 235 . . . . 251 . . . . 69 . . . . 172 242 668 182 207 133 158 205 Maximum Alert Level 3 | . 1 . 1 2 1 3 . . . . 3 . . . . . . . . . 1 2 3 2 2 1 1 1 Low Security (%) 53 | 100 83 100 45 9 59 48 . . . . 47 . . . . 100 . . . . 52 44 . 54 39 76 61 31 Level 1 37 | . 16 . 54 54 40 37 . . . . 43 . . . . . . . . . 47 37 19 31 49 23 38 68 Level 2 7 | . . . . 36 . 13 . . . . 2 . . . . . . . . . . 17 8 14 10 . . . Level 3 1 | . . . . . . . . . . . 5 . . . . . . . . . . . 72 . . . . . Level 4 . | . . . . . . . . . . . . . . . . . . . . . . . . . . . . . Level 5 . | . . . . . . . . . . . . . . . . . . . . . . . . . . . . . High Security . | . . . . . . . . . . . . . . . . . . . . . . . . . . . . . Max Security . | . . . . . . . . . . . . . . . . . . . . . . . . . . . . . Squads Dispatched 74 | . 2 1 4 3 1 13 . . . . 13 . . . . 2 . . . . 10 3 . . 8 3 . 11 Investigation 9 | . . 1 1 2 1 . . . . . . . . . . . . . . . 2 . . . 1 . . 1 Extermination 25 | . . . . . . 6 . . . . 3 . . . . 2 . . . . 6 . . . 3 2 . 3 Reinforcement 31 | . 2 . 3 1 . 4 . . . . 8 . . . . . . . . . 2 1 . . 2 1 . 7 Assault 3 | . . . . . . . . . . . . . . . . . . . . . . 2 . . 1 . . . Garrison 6 | . . . . . . 3 . . . . 2 . . . . . . . . . . . . . 1 . . . Intercept . | . . . . . . . . . . . . . . . . . . . . . . . . . . . . . Construction Impeded 5 | . . . . . . . . . . . 2 . . . . . . . . . . 1 . . 1 . . 1 Haulers Reinforced 6 | . . . . . . 1 . . . . 1 . . . . . . . . . 1 . . . 1 . . 2 Stealth | -11 -10 -10 -9 -9 -8 -7 -7 -7 -7 -6 -6 -6 -6 -6 -5 -5 -5 -5 -5 -4 -4 -4 -4 -4 -3 -3 -2 -1 --------- Run | Scr Mat Min Mat Sto Mat Fac Low Low Dat Pro Fac Low Low Zio Pro Fac Upp Upp War Pro Fac Ext Cet Arc Res Tes Res Acc Distress Signals 47 | . 2 . 5 2 5 3 . . . . 2 . . . . 3 . . . . 2 5 2 . 4 1 7 4 Communications Jammed 2 | . . . . . . . . . . . . . . . . . . . . . . . . . 1 1 . . Distress Signals 1 | . . . . . . . . . . . . . . . . . . . . . . . . . 1 . . . Times Spotted 605 | . 28 6 44 28 37 49 4 11 . 15 50 3 5 . 13 27 7 3 35 6 27 40 17 7 34 26 29 54 Peak Tracking Total 21 | . 5 2 7 7 7 5 4 4 . 5 7 2 4 . 4 9 4 3 21 5 6 5 5 1 4 7 6 18 Tactical Retreats 33 | . . . . 2 4 1 . 3 . . . . 2 . 1 1 1 . 2 1 1 3 1 . 1 2 1 6 Traps | -11 -10 -10 -9 -9 -8 -7 -7 -7 -7 -6 -6 -6 -6 -6 -5 -5 -5 -5 -5 -4 -4 -4 -4 -4 -3 -3 -2 -1 ------- Run | Scr Mat Min Mat Sto Mat Fac Low Low Dat Pro Fac Low Low Zio Pro Fac Upp Upp War Pro Fac Ext Cet Arc Res Tes Res Acc Traps Triggered 30 | . 1 . 2 4 1 1 . . . . . . . . . 3 . . . . 7 8 . . . 1 . 2 Indirectly . | . . . . . . . . . . . . . . . . . . . . . . . . . . . . . Trap Hack Attempts . | . . . . . . . . . . . . . . . . . . . . . . . . . . . . . Triggered . | . . . . . . . . . . . . . . . . . . . . . . . . . . . . . Disarmed . | . . . . . . . . . . . . . . . . . . . . . . . . . . . . . Reprogrammed . | . . . . . . . . . . . . . . . . . . . . . . . . . . . . . Reused . | . . . . . . . . . . . . . . . . . . . . . . . . . . . . . Traps Extracted . | . . . . . . . . . . . . . . . . . . . . . . . . . . . . . Installed . | . . . . . . . . . . . . . . . . . . . . . . . . . . . . . Triggered 23 | . . . . . . . . . . . . . . . 1 . . . 22 . . . . . . . . . Machines | -11 -10 -10 -9 -9 -8 -7 -7 -7 -7 -6 -6 -6 -6 -6 -5 -5 -5 -5 -5 -4 -4 -4 -4 -4 -3 -3 -2 -1 ---------- Run | Scr Mat Min Mat Sto Mat Fac Low Low Dat Pro Fac Low Low Zio Pro Fac Upp Upp War Pro Fac Ext Cet Arc Res Tes Res Acc Machines Disabled 59 | . 1 . 1 2 4 5 . . . . 14 . . . . . . 1 . . 5 4 4 3 2 9 2 2 Max in Single Turn 5 | . 1 . 1 1 2 5 . . . . 4 . . . . . . 1 . . 1 1 . 1 1 1 1 1 Garrison Access 6 | . . . . 1 . . . . . . 3 . . . . . . . . . . . . . 1 1 . . Energy Cycler 1 | . . . . . . . . . . . . . . . . . . . . . . . . . . . . 1 Machines Sabotaged . | . . . . . . . . . . . . . . . . . . . . . . . . . . . . . Garrisons Compromised . | . . . . . . . . . . . . . . . . . . . . . . . . . . . . . Overloaded Fab Kills . | . . . . . . . . . . . . . . . . . . . . . . . . . . . . . Fab Network Shutdowns . | . . . . . . . . . . . . . . . . . . . . . . . . . . . . . Hacking | -11 -10 -10 -9 -9 -8 -7 -7 -7 -7 -6 -6 -6 -6 -6 -5 -5 -5 -5 -5 -4 -4 -4 -4 -4 -3 -3 -2 -1 --------- Run | Scr Mat Min Mat Sto Mat Fac Low Low Dat Pro Fac Low Low Zio Pro Fac Upp Upp War Pro Fac Ext Cet Arc Res Tes Res Acc Machines Accessed 97 | . 7 1 4 10 9 11 1 1 4 . 12 . 1 . . 4 . 1 3 . 7 4 . 1 3 9 1 3 Terminals 62 | . 5 . 3 8 7 10 . . . . 5 . . . . 4 . . . . 4 4 . . 1 7 1 3 Fabricators 2 | . . . . . . . . . . . 1 . . . . . . . . . 1 . . . . . . . Repair Stations 1 | . . . . . . . . . . . 1 . . . . . . . . . . . . . . . . . Recycling Units 7 | . 2 . . 1 1 1 . . . . 2 . . . . . . . . . . . . . . . . . Scanalyzers 5 | . . . 1 . 1 . . . . . . . . . . . . . . . 1 . . . 1 1 . . Garrison Access 7 | . . . . 1 . . . . . . 3 . . . . . . . . . 1 . . . 1 1 . . Total Hacks 228 | . 18 1 10 28 25 19 1 1 28 . 22 . 1 . . 10 . 1 4 . 18 12 . 3 5 15 1 5 Successful 124 | . 11 1 7 12 16 3 1 1 28 . 11 . 1 . . 3 . 1 4 . 7 5 . 3 . 7 . 2 Failed 103 | . 6 . 3 16 9 16 . . . . 11 . . . . 7 . . . . 11 7 . . 5 8 1 3 Catastrophic 18 | . 1 . 1 1 . 4 . . . . 3 . . . . 1 . . . . 1 . . . 2 3 . 1 Database Lockouts 1 | . 1 . . . . . . . . . . . . . . . . . . . . . . . . . . . Manual 102 | . 14 . 9 15 12 12 . . . . 8 . . . . 7 . . 1 . 6 8 1 . 2 5 1 1 Terminals 146 | . 16 . 9 24 21 16 . . . . 9 . . . . 10 . . . . 9 12 . . 2 12 1 5 Fabricators 8 | . . . . . . . . . . . 4 . . . . . . . . . 4 . . . . . . . Repair Stations 2 | . . . . . . . . . . . 2 . . . . . . . . . . . . . . . . . Recycling Units 11 | . 2 . . 3 1 3 . . . . 2 . . . . . . . . . . . . . . . . . Scanalyzers 10 | . . . 1 . 3 . . . . . . . . . . . . . . . 3 . . . 1 2 . . Garrison Access 11 | . . . . 1 . . . . . . 5 . . . . . . . . . 2 . . . 2 1 . . Terminal Hacks 67 | . 3 1 2 5 7 2 1 1 28 . 1 . 1 . . 1 . 1 4 . 1 1 . 3 . 2 . 2 Record 17 | . . . . . . . . . 11 . . . . . . . . 1 2 . . . . 3 . . . . Part Schematic 9 | . . . . . . . . . 8 . . . . . . . . . . . . . . . . 1 . . Robot Schematic 6 | . . . . . . . . . 6 . . . . . . . . . . . . . . . . . . . Robot Analysis 5 | . 3 . 1 . 1 . . . . . . . . . . . . . . . . . . . . . . . Prototype ID Bank 3 | . . . . . . . . . 3 . . . . . . . . . . . . . . . . . . . Open Door 9 | . . 1 . 2 . . 1 1 . . . . 1 . . . . . 2 . . . . . . 1 . . Level Access Points 2 | . . . . 1 . . . . . . . . . . . . . . . . . . . . . . . 1 Branch Access Points 2 | . . . 1 . . 1 . . . . . . . . . . . . . . . . . . . . . . Terminal Index 1 | . . . . . . . . . . . . . . . . . . . . . . . . . . . . 1 Alert Level 2 | . . . . 1 1 . . . . . . . . . . . . . . . . . . . . . . . Unreport Threat 4 | . . . . . 3 . . . . . . . . . . . . . . . . 1 . . . . . . Locate Traps 1 | . . . . . . . . . . . . . . . . 1 . . . . . . . . . . . . Zone Layout 6 | . . . . 1 2 1 . . . . 1 . . . . . . . . . 1 . . . . . . . Fabricator Hacks 3 | . . . . . . . . . . . 1 . . . . . . . . . 2 . . . . . . . Load Schematic 2 | . . . . . . . . . . . 1 . . . . . . . . . 1 . . . . . . . Build 1 | . . . . . . . . . . . . . . . . . . . . . 1 . . . . . . . Repair Station Hacks 1 | . . . . . . . . . . . 1 . . . . . . . . . . . . . . . . . Scan Component 1 | . . . . . . . . . . . 1 . . . . . . . . . . . . . . . . . Recycling Unit Hacks 6 | . 2 . . . 1 1 . . . . 2 . . . . . . . . . . . . . . . . . Report Inventory 6 | . 2 . . . 1 1 . . . . 2 . . . . . . . . . . . . . . . . . Scanalyzer 8 | . . . 1 . 3 . . . . . . . . . . . . . . . 2 . . . . 2 . . Insert Component 7 | . . . 1 . 2 . . . . . . . . . . . . . . . 2 . . . . 2 . . Analyze 1 | . . . . . 1 . . . . . . . . . . . . . . . . . . . . . . . Garrison Access Hacks 5 | . . . . 1 . . . . . . 3 . . . . . . . . . . . . . . 1 . . Seal Access 5 | . . . . 1 . . . . . . 3 . . . . . . . . . . . . . . 1 . . Unauthorized Hacks 34 | . 6 . 4 6 5 . . . . . 3 . . . . 2 . . . . 2 4 . . . 2 . . Terminals 34 | . 6 . 4 6 5 . . . . . 3 . . . . 2 . . . . 2 4 . . . 2 . . Track 3 | . . . 1 1 . . . . . . . . . . . . . . . . . . . . . 1 . . Assimilate 6 | . . . . . . . . . . . 2 . . . . . . . . . 1 2 . . . 1 . . Botnet 24 | . 5 . 3 5 5 . . . . . 1 . . . . 2 . . . . 1 2 . . . . . . Operators 1 | . 1 . . . . . . . . . . . . . . . . . . . . . . . . . . . Fabricators . | . . . . . . . . . . . . . . . . . . . . . . . . . . . . . Repair Stations . | . . . . . . . . . . . . . . . . . . . . . . . . . . . . . Recycling Units . | . . . . . . . . . . . . . . . . . . . . . . . . . . . . . Scanalyzers . | . . . . . . . . . . . . . . . . . . . . . . . . . . . . . Garrison Access . | . . . . . . . . . . . . . . . . . . . . . . . . . . . . . Data Cores Recovered . | . . . . . . . . . . . . . . . . . . . . . . . . . . . . . Used . | . . . . . . . . . . . . . . . . . . . . . . . . . . . . . Hacking Detections 67 | . 4 . 2 8 8 10 . . . . 10 . . . . 4 . . . . 6 2 . . 3 6 1 3 Full Trace Events 7 | . . . . 3 . . . . . . . . . . . . . . . . 2 . . . 1 . . 1 Feedback Events 3 | . . . . 1 . . . . . . . . . . . . . . . . . . . . 1 . . 1 Corruption 3 | . . . . 1 . . . . . . . . . . . . . . . . . . . . 1 . . 1 Feedback Blocked . | . . . . . . . . . . . . . . . . . . . . . . . . . . . . . Robot Schematics Acquired 6 | . . . . . . . . . 6 . . . . . . . . . . . . . . . . . . . Robots Built . | . . . . . . . . . . . . . . . . . . . . . . . . . . . . . Matter . | . . . . . . . . . . . . . . . . . . . . . . . . . . . . . Time . | . . . . . . . . . . . . . . . . . . . . . . . . . . . . . Total Robot Build Rating . | . . . . . . . . . . . . . . . . . . . . . . . . . . . . . Part Schematics Acquired 10 | . . . . . 1 . . . 8 . . . . . . . . . . . . . . . . 1 . . Parts Built 1 | . . . . . . . . . . . . . . . . . . . . . 1 . . . . . . . Matter 168 | . . . . . . . . . . . . . . . . . . . . . 168 . . . . . . . Time 42 | . . . . . . . . . . . . . . . . . . . . . 42 . . . . . . . Total Part Build Rating 4 | . . . . . . . . . . . . . . . . . . . . . 4 . . . . . . . Parts Repaired . | . . . . . . . . . . . . . . . . . . . . . . . . . . . . . Time . | . . . . . . . . . . . . . . . . . . . . . . . . . . . . . Parts Recycled . | . . . . . . . . . . . . . . . . . . . . . . . . . . . . . Recycled Matter . | . . . . . . . . . . . . . . . . . . . . . . . . . . . . . Retrieved Matter . | . . . . . . . . . . . . . . . . . . . . . . . . . . . . . Retrieved Components . | . . . . . . . . . . . . . . . . . . . . . . . . . . . . . Parts Scanalyzed 1 | . . . . . 1 . . . . . . . . . . . . . . . . . . . . . . . Part Schematics Acquired 1 | . . . . . 1 . . . . . . . . . . . . . . . . . . . . . . . Parts Damaged . | . . . . . . . . . . . . . . . . . . . . . . . . . . . . . Bothacking | -11 -10 -10 -9 -9 -8 -7 -7 -7 -7 -6 -6 -6 -6 -6 -5 -5 -5 -5 -5 -4 -4 -4 -4 -4 -3 -3 -2 -1 ------------ Run | Scr Mat Min Mat Sto Mat Fac Low Low Dat Pro Fac Low Low Zio Pro Fac Upp Upp War Pro Fac Ext Cet Arc Res Tes Res Acc Used RIF Installer . | . . . . . . . . . . . . . . . . . . . . . . . . . . . . . Robots Hacked . | . . . . . . . . . . . . . . . . . . . . . . . . . . . . . Non-combat . | . . . . . . . . . . . . . . . . . . . . . . . . . . . . . Combat . | . . . . . . . . . . . . . . . . . . . . . . . . . . . . . Robot Hacks Applied . | . . . . . . . . . . . . . . . . . . . . . . . . . . . . . Relay Couplers Released 11 | . . . . . . . . . . . . . . . . . . . . . . . . . 7 . 4 . Programmers 11 | . . . . . . . . . . . . . . . . . . . . . . . . . 7 . 4 . Robots Rewired 26 | . . . . . . . . . . . . . . . . . . . . . . 26 . . . . . . Allies Hacked . | . . . . . . . . . . . . . . . . . . . . . . . . . . . . . Hacks Repelled . | . . . . . . . . . . . . . . . . . . . . . . . . . . . . . Allies | -11 -10 -10 -9 -9 -8 -7 -7 -7 -7 -6 -6 -6 -6 -6 -5 -5 -5 -5 -5 -4 -4 -4 -4 -4 -3 -3 -2 -1 -------- Run | Scr Mat Min Mat Sto Mat Fac Low Low Dat Pro Fac Low Low Zio Pro Fac Upp Upp War Pro Fac Ext Cet Arc Res Tes Res Acc Total Allies 38 | . . . . . . . . . . 1 . . . . . . . . . . . 36 . . . 1 . . Largest Group 22 | . . . . . . . . . . 1 1 . . . . . . . . . . 22 18 5 . 1 . . Highest-Rated Group 996 | . . . . . . . . . . 94 94 . . . . . . . . . . 996 806 278 . 44 . . Highest-Rated Ally 156 | . . . . . . . . . . 94 94 . . . . . . . . . . 156 134 134 . 44 . . Total Orders 8 | . . . . . . . . . . . . . . . . . . . . . . 4 2 1 . 1 . . STAY 5 | . . . . . . . . . . . . . . . . . . . . . . 2 1 1 . 1 . . FOLLOW 3 | . . . . . . . . . . . . . . . . . . . . . . 2 1 . . . . . Ally Attacks 348 | . . . . . . . . . . 33 31 . . . . . . . . . . 141 133 10 . . . . Total Damage 10420 | . . . . . . . . . . 991 1194 . . . . . . . . . . 4126 3930 179 . . . . Kills 61 | . . . . . . . . . . 11 8 . . . . . . . . . . 20 18 4 . . . . Allies Corrupted . | . . . . . . . . . . . . . . . . . . . . . . . . . . . . . Allies Melted . | . . . . . . . . . . . . . . . . . . . . . . . . . . . . . Intel | -11 -10 -10 -9 -9 -8 -7 -7 -7 -7 -6 -6 -6 -6 -6 -5 -5 -5 -5 -5 -4 -4 -4 -4 -4 -3 -3 -2 -1 ------- Run | Scr Mat Min Mat Sto Mat Fac Low Low Dat Pro Fac Low Low Zio Pro Fac Upp Upp War Pro Fac Ext Cet Arc Res Tes Res Acc Robot Analysis Total 5 | . 3 . 1 . 1 . . . . . . . . . . . . . . . . . . . . . . . Derelict Logs Recovered 15 | . . 1 . . . . 2 2 . 1 . 2 1 1 . . 1 3 . 1 . . . . . . . . Drone Launches . | . . . . . . . . . . . . . . . . . . . . . . . . . . . . . Drone Recoveries . | . . . . . . . . . . . . . . . . . . . . . . . . . . . . . Exploration | -11 -10 -10 -9 -9 -8 -7 -7 -7 -7 -6 -6 -6 -6 -6 -5 -5 -5 -5 -5 -4 -4 -4 -4 -4 -3 -3 -2 -1 ------------- Run | Scr Mat Min Mat Sto Mat Fac Low Low Dat Pro Fac Low Low Zio Pro Fac Upp Upp War Pro Fac Ext Cet Arc Res Tes Res Acc Turns Passed 41517 | 48 931 618 1720 1385 2024 3480 1429 1796 151 1071 2431 1417 908 2295 517 1855 964 1079 1738 657 2549 1934 341 2613 1325 1727 1171 1343 Spaces Moved 19206 | 36 687 302 823 653 917 1559 714 919 82 517 1083 750 495 1271 259 917 468 568 869 344 1120 706 162 381 521 723 522 838 Core 390 | 1 . . . . . . . . . . . . . . . 1 . . . . . . . 44 . . . 344 Treads 18082 | . 27 299 808 653 917 1559 714 919 82 517 1083 750 495 1271 259 916 468 568 869 344 1120 706 162 337 521 723 522 473 Legs . | . . . . . . . . . . . . . . . . . . . . . . . . . . . . . Wheels 713 | 35 660 3 15 . . . . . . . . . . . . . . . . . . . . . . . . . Hover 13 | . . . . . . . . . . . . . . . . . . . . . . . . . . . . 13 Flight 8 | . . . . . . . . . . . . . . . . . . . . . . . . . . . . 8 Fastest Speed 40 | 50 100 110 110 160 178 175 186 186 186 181 173 175 175 176 180 176 182 182 160 180 180 180 180 180 172 165 165 40 Average Speed 179 | 98 106 179 159 166 180 180 187 186 186 184 174 175 175 177 180 180 182 182 183 180 180 180 180 528 179 168 165 117 Slowest Speed 3200 | 100 180 180 160 180 183 210 190 186 186 186 193 175 176 180 180 2550 182 182 210 180 180 180 180 3200 180 172 165 177 Overloaded Moves . | . . . . . . . . . . . . . . . . . . . . . . . . . . . . . Propulsion Burnouts . | . . . . . . . . . . . . . . . . . . . . . . . . . . . . . Robots Hopped 3 | . . . . . . . . . . . . . . . . . . . . . . . . . . . . 3 Cave-ins Triggered . | . . . . . . . . . . . . . . . . . . . . . . . . . . . . . Exploration Rate (%) 59 | 3 97 53 55 66 61 50 80 89 69 74 33 89 67 85 45 25 64 79 93 57 30 86 62 82 14 63 22 30 Regions Visited 28 Branch Regions 18 Pre-discovered Areas 4 | . . . . . . . . . 1 . . 1 . 2 . . . . . . . . . . . . . . Known Exits Taken 24 | . . . 1 1 . 1 1 1 1 1 1 1 1 1 1 1 1 1 1 1 1 1 1 1 1 1 1 . Unknown Exits Taken 4 | 1 1 1 . . 1 . . . . . . . . . . . . . . . . . . . . . . . Scrap Searched 23 | . . . . . . . 2 3 . . . 2 5 4 1 . 1 4 . 1 . . . . . . . . Spaces Dug 78 | . . . . . . 4 . . . . 8 . 1 . . 5 . . . . 6 2 . . 8 12 11 21 Terrain Destroyed 462 | . . . . 25 10 43 . 10 . . 54 1 6 . . 5 . . 1 1 81 61 16 23 18 31 38 38 Melee 8 | . . . . . . 4 . . . . 2 . . . . 2 . . . . . . . . . . . . Projectile 276 | . . . . . . . . . . . 7 1 1 . . 3 . . 1 1 41 61 16 23 18 31 38 34 AOE 178 | . . . . 25 10 39 . 10 . . 45 . 5 . . . . . . . 40 . . . . . . 4 Terrain Rammed . | . . . . . . . . . . . . . . . . . . . . . . . . . . . . . Walls Destroyed . | . . . . . . . . . . . . . . . . . . . . . . . . . . . . . Machines Disabled . | . . . . . . . . . . . . . . . . . . . . . . . . . . . . . Actions | -11 -10 -10 -9 -9 -8 -7 -7 -7 -7 -6 -6 -6 -6 -6 -5 -5 -5 -5 -5 -4 -4 -4 -4 -4 -3 -3 -2 -1 --------- Run | Scr Mat Min Mat Sto Mat Fac Low Low Dat Pro Fac Low Low Zio Pro Fac Upp Upp War Pro Fac Ext Cet Arc Res Tes Res Acc Total 24108 | 45 794 343 1078 855 1179 2007 778 977 81 596 1399 821 528 1303 282 1043 550 593 981 368 1521 1280 208 968 703 1115 700 1012 Wait 2136 | . 10 7 77 73 93 183 35 22 . 43 66 37 9 14 . 9 54 6 37 1 227 161 7 556 39 263 68 39 Move 19173 | 35 686 301 822 652 916 1558 713 918 81 516 1082 749 494 1270 258 916 467 567 868 343 1119 705 161 380 520 722 521 833 Hop 2 | . . . . . . . . . . . . . . . . . . . . . . . . . . . . 2 Pick Up 326 | 4 20 4 21 12 22 32 1 3 . . 38 6 4 3 1 21 2 3 9 4 33 19 11 3 15 12 15 8 Fast Attach 101 | 6 2 . 5 5 5 6 2 . . . 6 . 2 . . 10 . . 5 . 13 1 5 2 2 11 3 10 Attach 140 | . 2 2 5 1 3 15 . 1 . 3 19 . 2 1 1 7 3 . 7 8 4 11 1 1 11 8 9 15 Detach 16 | . . . . . 1 1 . . . . 1 . . . . 2 . . 1 . 2 . . 1 2 3 1 1 Swap 372 | . 8 2 14 20 14 43 4 9 . 10 36 6 6 13 5 19 8 6 13 4 39 20 1 7 22 24 12 7 Drop 333 | . 15 4 29 30 35 35 2 2 . . 25 7 4 2 1 13 1 2 23 . 28 11 15 9 9 19 10 2 Fire 1143 | . 51 21 102 62 87 122 11 22 . 24 122 16 7 . 16 42 15 9 17 8 54 50 7 9 80 53 60 76 Melee 8 | . . . . . . 4 . . . . 2 . . . . 2 . . . . . . . . . . . . Ram . | . . . . . . . . . . . . . . . . . . . . . . . . . . . . . Kick . | . . . . . . . . . . . . . . . . . . . . . . . . . . . . . Crush 54 | . . 2 3 . 3 8 10 . . . 2 . . . . . . . . . 2 1 . . 3 . 1 19 Escape Stasis 18 | . . . . . . . . . . . . . . . . 2 . . . . . 16 . . . . . . Rewire 286 | . . . . . . . . . . . . . . . . . . . 1 . . 285 . . . . . . Trap . | . . . . . . . . . . . . . . . . . . . . . . . . . . . . . Miscellaneous . | . . . . . . . . . . . . . . . . . . . . . . . . . . . . . Route ------- -11/Scrapyard -10/Materials (discovered 5 exits: *Mat x3 / *Min x2) -10/Mines -9/Materials (discovered 3 exits: *Mat / *Min / *Sto) -9/Storage -8/Materials -7/Factory (discovered 3 exits: *Fac / *Low x2) -7/Lower Caves -7/Lower Caves (discovered 2 exits: *Fac / *Dat) -7/Data Miner -6/Proximity Caves -6/Factory (discovered 4 exits: *Fac x3 / *Low) -6/Lower Caves -6/Lower Caves (discovered 2 exits: *Fac / *Zio) -6/Zion (discovered 2 exits: [Dee] / *Pro) -5/Proximity Caves -5/Factory (discovered 2 exits: *Fac / *Upp) -5/Upper Caves -5/Upper Caves (discovered 2 exits: *Fac / *War) -5/Warlord -4/Proximity Caves -4/Factory (discovered 4 exits: *Res x2 / Upp / *Ext) -4/Extension (discovered 3 exits: *Res x2 / *Cet) -4/Cetus (discovered 2 exits: *Res / *Arc) -4/Archives (discovered 3 exits: *Res / *Hub x2) -3/Research (discovered 2 exits: Res / *Tes) -3/Testing -2/Research -1/Access (discovered 1 exit: Sur) History --------- Turn | Location | Event 24 | -11/Scrapyard | Discovered new exit (range 15) 49 | -11/Scrapyard | Entered Materials 130 | -10/Materials | Discovered new exit (range 16) 331 | -10/Materials | Build established: Mutant 395 | -10/Materials | Discovered new exit (range 4) 448 | -10/Materials | Discovered new exit (range 7) 589 | -10/Materials | Discovered new exit (range 8) 599 | -10/Materials | Central database locked down 732 | -10/Materials | Discovered new exit (range 16) 980 | -10/Materials | Entered Mines 1025 | -10/Mines | Discovered new exit (range 13) 1150 | -10/Mines | Learned Materials garrison access intel 1291 | -10/Mines | Assembled infested the area 1461 | -10/Mines | Met a Derelict shopkeep closing up shop 1598 | -10/Mines | Entered Materials 1598 | -9/Materials | Evolved 2 slots: Propulsion x1, Utility x1 1994 | -9/Materials | Build established: Scavenger-Mutant 2221 | -9/Materials | Discovered new exit (range 3) 2480 | -9/Materials | Discovered new exit (range 12) 2787 | -9/Materials | Discovered new exit (range 11) 3172 | -9/Materials | Identified exit to Mines 3172 | -9/Materials | Identified exit to Storage 3318 | -9/Materials | Entered Storage 3609 | -9/Storage | Identified exit to Materials 4156 | -9/Storage | Core integrity fell below 50% 4585 | -9/Storage | Build established: Hauler-Mutant 4703 | -9/Storage | Entered Materials 4703 | -8/Materials | Evolved 2 slots: Utility x2 4704 | -8/Materials | Loaded intel: 1 garrison access location 5114 | -8/Materials | Build established: Scavenger-Mutant 5963 | -8/Materials | Build established: Hauler-Mutant 6029 | -8/Materials | Discovered new exit (range 10) 6727 | -8/Materials | Entered Factory 6727 | -7/Factory | Evolved 2 slots: Utility x1, Weapon x1 7140 | -7/Factory | Build established: Hauler-Skirmisher 7287 | -7/Factory | Found Prototype Launcher 7287 | -7/Factory | Identified Rocket Array 8254 | -7/Factory | Lost 3 parts (1n1u1w) 8266 | -7/Factory | Build established: Hauler-Tank 8286 | -7/Factory | Discovered new exit (range 7) 8298 | -7/Factory | Identified exit to Factory 8791 | -7/Factory | Build established: Hauler-Skirmisher 9534 | -7/Factory | Identified exit to Lower Caves 9773 | -7/Factory | Core integrity fell below 50% 9782 | -7/Factory | Garrison activated, responded to threat 9851 | -7/Factory | Destroyed 7 combat bots 9854 | -7/Factory | Lost 4 parts (1n2u1w) 10085 | -7/Factory | Build established: Hauler-Tank 10207 | -7/Factory | Entered Lower Caves 10344 | -7/Lower Caves | Learned Factory stockpile data 10452 | -7/Lower Caves | Build established: Hauler-Skirmisher 10559 | -7/Lower Caves | Learned Factory terminal intel 11165 | -7/Lower Caves | Discovered new exit (range 6) 11423 | -7/Lower Caves | Encountered a Warlord checkpoint 11424 | -7/Lower Caves | Identified exit to Lower Caves 11636 | -7/Lower Caves | Entered another Lower Caves area 11743 | -7/Lower Caves | Discovered exit to Factory (range 6) 11852 | -7/Lower Caves | Learned Factory trap positions 12149 | -7/Lower Caves | Learned Factory security intel 12389 | -7/Lower Caves | Discovered new exit (range 15) 13431 | -7/Lower Caves | Identified exit to Data Miner 13432 | -7/Lower Caves | Entered Data Miner 13432 | -7/Data Miner | Discovered new exit (range 6) 13468 | -7/Data Miner | Met Data Miner 13501 | -7/Data Miner | Learned location of Section 7 (-2) 13501 | -7/Data Miner | Acquired the access code to Warlord's prototype stash 13533 | -7/Data Miner | Received God Mode back door access code from Data Miner 13581 | -7/Data Miner | Identified exit to Proximity Caves 13583 | -7/Data Miner | Entered Proximity Caves 13661 | -6/Proximity Caves | Escorted by Enhanced Grunt 13929 | -6/Proximity Caves | Attracted the attention of an 0b10 checkpoint 14038 | -6/Proximity Caves | Learned Factory emergency access door positions 14477 | -6/Proximity Caves | Discovered exit to Factory (range 15) 14654 | -6/Proximity Caves | Entered Factory 14654 | -6/Factory | Accompanied by 1 ally 14654 | -6/Factory | Evolved 2 slots: Utility x2 14655 | -6/Factory | Loaded intel: 80 trap records 14659 | -6/Factory | Loaded intel: 20 terminal locations 14881 | -6/Factory | Discovered new exit (range 15) 15004 | -6/Factory | Identified exit to Factory 15150 | -6/Factory | Discovered exit to Factory (range 7) 15542 | -6/Factory | Spotted B-75 Beast 15730 | -6/Factory | Discovered exit to Factory (range 4) 16005 | -6/Factory | Found Exp. Terrain Scan Processor 16341 | -6/Factory | Lost 4 parts (2n1u1w) 16536 | -6/Factory | Build established: Hauler-Tank 16593 | -6/Factory | Discovered new exit (range 5) 16607 | -6/Factory | Identified exit to Lower Caves 16626 | -6/Factory | Garrison activated, responded to threat 16814 | -6/Factory | Destroyed 7 combat bots 16822 | -6/Factory | Lost 9 parts (1p3n2u3w) 17052 | -6/Factory | Build established: Scavenger-Tank 17085 | -6/Factory | Entered Lower Caves 17087 | -6/Lower Caves | Attracted the attention of an 0b10 checkpoint 17292 | -6/Lower Caves | Learned location of Zion (-6) 17388 | -6/Lower Caves | Learned Factory machine intel 17421 | -6/Lower Caves | Build established: Hauler-Tank 18006 | -6/Lower Caves | Build established: Hauler-Skirmisher 18207 | -6/Lower Caves | Discovered new exit (range 12) 18500 | -6/Lower Caves | Identified exit to Lower Caves 18502 | -6/Lower Caves | Entered another Lower Caves area 18537 | -6/Lower Caves | Discovered exit to Factory (range 3) 18780 | -6/Lower Caves | Learned Factory stockpile data 19039 | -6/Lower Caves | Found Alien Artifact 19039 | -6/Lower Caves | Identified Core Expander 19039 | -6/Lower Caves | Installed Core Expander, added new Propulsion slot 19209 | -6/Lower Caves | Discovered new exit (range 15) 19289 | -6/Lower Caves | Encountered a Warlord checkpoint 19299 | -6/Lower Caves | Identified exit to Zion 19410 | -6/Lower Caves | Entered Zion 19438 | -6/Zion | Build established: Scavenger-Skirmisher 19477 | -6/Zion | Discovered new exit (range 11) 19483 | -6/Zion | Learned location of 1 exit from Factory 19639 | -6/Zion | Learned location of Warlord (-5) 19833 | -6/Zion | Visited the Megawrench Repair Shop 20035 | -6/Zion | Learned location of Armory (-3) 20278 | -6/Zion | Received a visual enhancement algorithm 20359 | -6/Zion | Given the Hacking Drone Bay 20364 | -6/Zion | Found Prototype Device 20729 | -6/Zion | Megawrench repaired 15 parts 21166 | -6/Zion | Identified exit to Proximity Caves 21436 | -6/Zion | Discovered new exit (range 11) 21705 | -6/Zion | Entered Proximity Caves 22167 | -5/Proximity Caves | Build established: Hauler-Skirmisher 22182 | -5/Proximity Caves | Discovered exit to Factory (range 16) 22216 | -5/Proximity Caves | Attracted the attention of an 0b10 checkpoint 22222 | -5/Proximity Caves | Entered Factory 22222 | -5/Factory | Evolved 2 slots: Utility x1, Weapon x1 22223 | -5/Factory | Identified exit to Factory 22225 | -5/Factory | Loaded intel: 275 machine locations 23117 | -5/Factory | Lost 3 parts (1n1u1w) 23477 | -5/Factory | Discovered new exit (range 18) 23596 | -5/Factory | Identified exit to Upper Caves 24077 | -5/Factory | Entered Upper Caves 24450 | -5/Upper Caves | Lost 3 parts (1u2w) 24704 | -5/Upper Caves | Learned Factory emergency access door positions 24928 | -5/Upper Caves | Discovered new exit (range 20) 25018 | -5/Upper Caves | Identified exit to Upper Caves 25041 | -5/Upper Caves | Entered another Upper Caves area 25043 | -5/Upper Caves | Attracted the attention of an 0b10 checkpoint 25116 | -5/Upper Caves | Discovered exit to Factory (range 17) 25151 | -5/Upper Caves | Learned location of 1 exit from Proximity Caves 25237 | -5/Upper Caves | Learned 8 Factory zone layouts 25491 | -5/Upper Caves | Discovered new exit (range 19) 25545 | -5/Upper Caves | Identified exit to Warlord 25615 | -5/Upper Caves | Found Alien Artifact 25717 | -5/Upper Caves | Encountered a Warlord checkpoint 25775 | -5/Upper Caves | Learned 8 Factory zone layouts 25900 | -5/Upper Caves | Build established: Hauler-Mutant 26120 | -5/Upper Caves | Entered Warlord 26420 | -5/Warlord | Build established: Hauler-Skirmisher 26791 | -5/Warlord | Visited the Vortex Lab 26795 | -5/Warlord | Warlord's base attacked by MAIN.C 26807 | -5/Warlord | Found Prototype Energy Cannon 26807 | -5/Warlord | Identified Vortex Driver 27033 | -5/Warlord | Met Warlord 27057 | -5/Warlord | Opened Warlord's prototype stash 27070 | -5/Warlord | Found Prototype Device 27070 | -5/Warlord | Identified Exp. Phase Shifter 27079 | -5/Warlord | Found Prototype Device 27079 | -5/Warlord | Identified Thermal Barrier 27097 | -5/Warlord | Found Prototype Reactor 27106 | -5/Warlord | Found Prototype Hackware 27111 | -5/Warlord | Found Prototype Processor 27145 | -5/Warlord | Warlord forces counterattacked 27364 | -5/Warlord | Spotted Striker 27507 | -5/Warlord | Spotted Executioner 27730 | -5/Warlord | Opened side exit 27795 | -5/Warlord | Spotted Executioner 27824 | -5/Warlord | Spotted Executioner 27840 | -5/Warlord | Discovered new exit (range 11) 27853 | -5/Warlord | Core integrity fell below 50% 27856 | -5/Warlord | Identified exit to Proximity Caves 27858 | -5/Warlord | Entered Proximity Caves 27860 | -4/Proximity Caves | Attracted the attention of an 0b10 checkpoint 27884 | -4/Proximity Caves | Lost 12 parts (1p4n3u4w) 28172 | -4/Proximity Caves | Learned Research terminal intel 28515 | -4/Proximity Caves | Entered Factory 28515 | -4/Factory | Evolved 2 slots: Utility x2 28516 | -4/Factory | Identified exit to Upper Caves 28995 | -4/Factory | Fabricated Lrn. Sensor Array? 29574 | -4/Factory | Discovered new exit (range 11) 29598 | -4/Factory | Identified exit to Research 30049 | -4/Factory | Found Hvy. Reactive Plating 30246 | -4/Factory | Incoming investigation squad redirected 30393 | -4/Factory | Discovered exit to Research (range 14) 30966 | -4/Factory | Spotted B-86 Titan 31046 | -4/Factory | Discovered new exit (range 11) 31062 | -4/Factory | Identified exit to Extension 31064 | -4/Factory | Entered Extension 31078 | -4/Extension | Disrupted transfer network 31095 | -4/Extension | Lost 3 parts (1n1u1w) 31209 | -4/Extension | Lost 4 parts (2u2w) 31439 | -4/Extension | Rescued a captive Derelict 31440 | -4/Extension | Rescued a captive Derelict 31699 | -4/Extension | Rescued A7 31863 | -4/Extension | Build established: Hauler-Tank 32227 | -4/Extension | Spotted B-86 Titan 32251 | -4/Extension | Destroyed B-86 Titan 32264 | -4/Extension | Spotted B-86 Titan 32265 | -4/Extension | Allies destroyed B-86 Titan 32373 | -4/Extension | Discovered exit to Research (range 15) 32564 | -4/Extension | First assault squad dispatched 32579 | -4/Extension | Incoming assault squad redirected 32603 | -4/Extension | Rescued a captive Derelict 32650 | -4/Extension | Rescued a captive Derelict 32651 | -4/Extension | Rescued a captive Derelict 32832 | -4/Extension | Incoming assault squad redirected 32884 | -4/Extension | Rescued a captive Derelict 32884 | -4/Extension | Rescued a captive Derelict 32900 | -4/Extension | Rescued a captive Derelict 32914 | -4/Extension | Discovered new exit (range 20) 32922 | -4/Extension | Discovered exit to Research (range 19) 32957 | -4/Extension | Build established: Commander-Skirmisher 32969 | -4/Extension | Identified exit to Cetus 32998 | -4/Extension | Entered Cetus 32998 | -4/Cetus | Accompanied by 18 allies (A7) 33003 | -4/Cetus | Acquired a Cetus Manufacturing Module code from A7 33021 | -4/Cetus | Spotted Cetus Guard 33021 | -4/Cetus | Spotted Cetus Guard 33024 | -4/Cetus | Spotted Cetus Guard 33024 | -4/Cetus | Spotted Cetus Guard 33036 | -4/Cetus | Allies destroyed Cetus Guard 33044 | -4/Cetus | Allies destroyed Cetus Guard 33045 | -4/Cetus | Allies destroyed Cetus Guard 33045 | -4/Cetus | Allies destroyed Cetus Guard 33078 | -4/Cetus | Cetus Manufacturing Module disabled 33111 | -4/Cetus | Failed to start Cetus Manufacturing Module 33146 | -4/Cetus | Discovered new exit (range 15) 33178 | -4/Cetus | Spotted Cetus Guard 33178 | -4/Cetus | Spotted Cetus Guard 33182 | -4/Cetus | Spotted Cetus Guard 33184 | -4/Cetus | Spotted Cetus Guard 33186 | -4/Cetus | Allies destroyed Cetus Guard 33192 | -4/Cetus | Allies destroyed Cetus Guard 33196 | -4/Cetus | Discovered exit to Research (range 16) 33201 | -4/Cetus | Destroyed Cetus Guard 33208 | -4/Cetus | Allies destroyed Cetus Guard 33223 | -4/Cetus | Met Revision 17 33336 | -4/Cetus | Identified exit to Archives 33339 | -4/Cetus | Entered Archives 33339 | -4/Archives | Accompanied by 5 allies (A7) 33418 | -4/Archives | Discovered new exit (range 16) 33442 | -4/Archives | Discovered new exit (range 16) 33497 | -4/Archives | Discovered exit to Research (range 15) 33772 | -4/Archives | Build established: Scavenger-Skirmisher 33883 | -4/Archives | Unable to access archive contents 34294 | -4/Archives | Identified exit to Hub_04(d) 35952 | -4/Archives | Entered Research 35952 | -3/Research | Evolved 2 slots: Utility x1, Weapon x1 35953 | -3/Research | Loaded intel: 17 terminal locations 36019 | -3/Research | Found Powered Armor 36022 | -3/Research | Found Powered Armor 36366 | -3/Research | Discovered new exit (range 20) 36536 | -3/Research | Lost 3 parts (1u2w) 36659 | -3/Research | Spotted B-86 Titan 37050 | -3/Research | Garrison activated, responded to threat 37115 | -3/Research | Identified System Mapper 37152 | -3/Research | Incoming assault squad redirected 37193 | -3/Research | Discovered new exit (range 18) 37230 | -3/Research | Identified exit to Testing 37277 | -3/Research | Entered Testing 37553 | -3/Testing | Identified Dimensional Node Initializer 37553 | -3/Testing | Identified Spectral Analyzer 37568 | -3/Testing | Found Prototype Device 37568 | -3/Testing | Identified EM Disruption Field 37622 | -3/Testing | Build established: Hauler-Mutant 38018 | -3/Testing | Found Prototype Protection 38022 | -3/Testing | Found Med. Regenerative Plating 38025 | -3/Testing | Found Med. Regenerative Plating 38027 | -3/Testing | Found Med. Regenerative Plating 38525 | -3/Testing | Discovered new exit (range 20) 38559 | -3/Testing | Spotted Superbehemoth 38578 | -3/Testing | Identified exit to Research 38651 | -3/Testing | Found Prototype Protection 38651 | -3/Testing | Identified Centrium Heavy Armor Plating 38667 | -3/Testing | Found Centrium Heavy Armor Plating 38841 | -3/Testing | Found Prototype Energy Cannon 38841 | -3/Testing | Identified Null Cannon 39004 | -3/Testing | Entered Research 39004 | -2/Research | Warlord forces began assault on 0b10 39004 | -2/Research | Evolved 2 slots: Power x1, Utility x1 39114 | -2/Research | Research machine network offline 39441 | -2/Research | Borebot progress halted 39484 | -2/Research | Warlord destroyed during the assault 39567 | -2/Research | Borebot progress halted 39590 | -2/Research | Borebot progress halted 39630 | -2/Research | Spotted Striker 39648 | -2/Research | Destroyed Striker 39652 | -2/Research | Spotted Executioner 39653 | -2/Research | Spotted Executioner 39659 | -2/Research | Destroyed Executioner 39694 | -2/Research | Destroyed Executioner 39709 | -2/Research | Spotted Striker 39725 | -2/Research | Destroyed Striker 39744 | -2/Research | Discovered new exit (range 16) 39778 | -2/Research | Identified exit to Access 39864 | -2/Research | Spotted Striker 39867 | -2/Research | Spotted Striker 39874 | -2/Research | Destroyed Striker 39898 | -2/Research | Destroyed Striker 39948 | -2/Research | Lost 5 parts (2p2u1w) 39950 | -2/Research | Build established: Hauler-Tank 39991 | -2/Research | Spotted B-90 Cyclops 40029 | -2/Research | Spotted Striker 40032 | -2/Research | Spotted Striker 40042 | -2/Research | Destroyed Striker 40175 | -2/Research | Entered Access 40175 | -1/Access | Evolved 2 slots: Utility x1, Weapon x1 40445 | -1/Access | Identified exit to Surface 40468 | -1/Access | Build established: Hauler-Executioner 40610 | -1/Access | Lost 3 parts (1n1u1w) 40670 | -1/Access | Lost 3 parts (1p2w) 40940 | -1/Access | Energy Cycler disabled 40998 | -1/Access | Spotted B-99 Colossus 41104 | -1/Access | Identified Vortex Chain Reactor 41125 | -1/Access | Lost 5 parts (2p1n2u) 41182 | -1/Access | Destroyed B-99 Colossus 41191 | -1/Access | Found Hvy. Insulated Plating 41201 | -1/Access | Found Prototype Ballistic Gun 41201 | -1/Access | Identified Multirail 41205 | -1/Access | Lost 3 parts (3w) 41325 | -1/Access | Released all parts (14) 41361 | -1/Access | Lost 10 parts (1p1n5u3w) 41435 | -1/Access | Core integrity fell below 50% 41454 | -1/Access | Spotted B-99 Colossus 41511 | -1/Access | Core integrity fell below 20% 41518 | -1/Access | Destroyed by H-88 Terminator with KE Penetrator Last Messages --------------- 41455_ U-05 Engineer lays Concrete. 41458_ P-80 Master resets P-80 Master, system corruption cleaned. 41461_ FWAQVGKQY&YPAT6EKUN0X|I||V:FU5=HX3Z 41472_ Antigrav Array destroyed. 41473_ Reaction Control System destroyed. 41493_ System corrupted: Heat flow error (+122). 41507_ Acquired Impulse Thruster. 41512_ System corrupted: Impulse Thruster rejected. 41513_ U-05 Engineer lays Concrete. 41515_ C-30 ARC bursts open, deploying its payload. 41515_ H-88 Terminator unfolds itself. 41515_ Penetrated by Slug. 41516_ O-24 Administrator sends out distress signal. 41517_ Slug penetrates Wall. 41517_ Penetrated by Slug. 41518_ O-24 Administrator uses terminal to summon reinforcements. 41518_ ALERT: Hostiles spotted, dispatching reinforcements to Terminal A005. 41518_ O-24 Administrator locks terminal. 41518_ Penetrated by Slug. Map ----- +----------------------------------------------------+ | #??# ???????????????????????????????????????? | | #??# ?#######?######?????????????????????????? | | #??# ?# #! #?????????????????????????? | | ####+##+### # #?????????????????????????? | | + !!! #?????????????????????????? | | # !!! #?????????????????????????? | | #[ !!! #?????????????????????????? | | #? #?????????????????????????? | | ####### #?#########??????????????????????? | | ??????# ##?# #??????????????????????? | | ??????# #?# #??????????????????????? | | ??????######### #?# [#??????????????????????? | | ??????????????# ### #??????????????????????? | | ??????????????# # #??????????????????????? | | ??????????????# + #??????????????????????? | | ??????????????# # #??????????????????????? | | ??????????????# # #??????????????????????? | | ??????????????# =# #??????????????????????? | | ??????????????# # #??????????????????????? | | ??????????????# # #??????????????????????? | | ??????????????# # #??????????????????????? | | ??????????????# # #???##+#######?????????? | | ??????????????# ########## ?????????? | | ??????????????# ss hh% ????????? | | ??????????????# s #??????????? | | ??????? ] @ #??????????? | | ??????# s #??????????? | | ??????# ss +??????????? | | ??????# u """s #??????????? | | ??????# u oT"?? ???????????? | | ??????# g """ ?????????????? | | ??????# A ?????????????? | | ??????? k ?????????????? | | ??????? ????????????? | | ????????##+### #####+##+### ???????????? | | ?????????????# ????????????##### ????????????? | | ?????????????# ????????????????? ????????????? | | ?????????????#????????????????????#??????????????? | | ?????????????????????????????????????????????????? | | ?????????????????????????????????????????????????? | | ?????????????????????????????????????????????????? | | ?????????????????????????????????????????????????? | | ?????????????????????????????????????????????????? | | ?????????????????????????????????????????????????? | | ?????????????????????????????????????????????????? | | ?????????????????????????????????????????????????? | | ?????????????????????????????????????????????????? | | ?????????????????????????????????????????????????? | | ?????????????????????????????????????????????????? | | ?????????????????????????????????????????????????? | +----------------------------------------------------+ Best States ------------- Heat Dissipation 152 Energy Generation 55 Energy Capacity 700 Matter Stores 363 Matter Capacity 450 Sight Range 16 Robot Scan Range 20 Terrain Scan Range 20 Terrain Scan Density 1010 Jamming Range 8 Additional Mass Support 12 Armor Coverage 3300 Resistance: KI 40 Resistance: TH 50 Resistance: EM 20 Utility Shielding 66 Weapon Cycling 20 Phase Shifting 5 Evasion (%) 62 Recoil Reduction 4 Matter Filtering 30 Kinecelleration 40 Offensive Hacking 20 Item Schematics ----------------- Lrn. Sensor Array | -8/Materials | Scanalyzed Combat Drone Bay | -7/Data Miner | Free Lgt. Regenerative Plating | -7/Data Miner | Free Exp. Flexi-carbon Leg | -7/Data Miner | Free Cmb. Gravmag System | -7/Data Miner | Free Exp. Terrain Scan Processor | -7/Data Miner | Free Cloaking Device | -7/Data Miner | Free Mni. Smartbomb Launcher | -7/Data Miner | Free Kinetic Spear | -7/Data Miner | Free Med. Regenerative Plating | -3/Testing | Hacked Robot Schematics ------------------ S-27 Virus | -7/Data Miner | Free G-50 Soldier | -7/Data Miner | Free G-67 Veteran | -7/Data Miner | Free P-70 Sage | -7/Data Miner | Free I-36 Angel | -7/Data Miner | Free L-41 Fighter | -7/Data Miner | Free Fabricated ------------ Lrn. Sensor Array | x1 | -4/Factory Alien Tech Used ----------------- Core Expander Achievements -------------- Treasure Hunter Challenges ------------ None Game ------ Seed PowerPulseFrame Manual? 0 Play Time 04:37:26 Cumulative 178.0 hours Start 2021.07.15 @ 16:52:08 End 2021.07.16 @ 15:17:03 Sessions 5 Manual Loads 0 Difficulty Rogue Special Mode None Game No. 127 Rogue 127 Adventurer 0 Explorer 0 Win Type - Total 6 Types 5/0/0/0/0/0/0/1/0 Lore% 81 Gallery% 70 Achievement% 58 Wizard Run 0 Options --------- ASCII 0 Keyboard 1 Movement Arrows Keybinds 0 Fullscreen 1 Font 18/SmallcapsGlow Map View 76x50 Tactical HUD 1 Map Filters NONE Filters NONE Steam 1 RUN: 6eab23a7-f4a9-4676-8472-280d1204e292